fUSD/lending_fUSD_20260530
["ID","MTS","AMOUNT","RATE_DAILY","PERIOD"]
[423391604,1780078661000,-500.0,8.558e-05,2]
[423391603,1780078661000,-500.0,8.558e-05,2]
[423391599,1780078661000,-500.0,8.558e-05,2]
[423391617,1780078662000,-500.0,8.558e-05,2]
[423391618,1780078662000,-500.0,8.558e-05,2]
[423391615,1780078662000,-500.0,8.558e-05,2]
[423391616,1780078662000,-500.0,8.558e-05,2]
[423391614,1780078662000,-500.0,8.558e-05,2]
[423391611,1780078662000,-500.0,8.558e-05,2]
[423391619,1780078662000,-500.0,8.558e-05,2]
[423391612,1780078662000,-500.0,8.558e-05,2]
[423391610,1780078662000,-500.0,8.558e-05,2]
[423391608,1780078662000,-264.77174073,8.558e-05,2]
[423391607,1780078662000,-500.0,8.558e-05,2]
[423391613,1780078662000,-500.0,8.558e-05,2]
[423391620,1780078662000,-500.0,8.558e-05,2]
[423391609,1780078662000,-500.0,8.558e-05,2]
[423391623,1780078662000,-500.0,8.558e-05,2]
[423391621,1780078662000,-500.0,8.558e-05,2]
[423391632,1780078662000,-500.0,8.559e-05,2]
[423391634,1780078662000,-500.0,8.559e-05,2]
[423391633,1780078662000,-447.89182038,8.559e-05,2]
[423391630,1780078662000,-1200.0,8.559e-05,2]
[423391629,1780078662000,-300.0,8.559e-05,2]
[423391631,1780078662000,-150.0,8.559e-05,2]
[423391627,1780078662000,-499.99999999,8.558e-05,2]
[423391625,1780078662000,-500.0,8.558e-05,2]
[423391626,1780078662000,-500.0,8.558e-05,2]
[423391624,1780078662000,-500.0,8.558e-05,2]
[423391622,1780078662000,-500.0,8.558e-05,2]
[423391628,1780078662000,-250.0,8.559e-05,2]
[423391642,1780078663000,-500.0,8.559e-05,2]
[423391635,1780078663000,-500.0,8.559e-05,2]
[423391637,1780078663000,-500.0,8.559e-05,2]
[423391636,1780078663000,-500.0,8.559e-05,2]
[423391638,1780078663000,-275.27976955,8.559e-05,2]
[423391641,1780078663000,-500.0,8.559e-05,2]
[423391640,1780078663000,-500.0,8.559e-05,2]
[423391644,1780078663000,-599.78761844,8.559e-05,2]
[423391639,1780078663000,-500.0,8.559e-05,2]
[423391647,1780078663000,-258084.8192,8.56e-05,2]
[423391648,1780078663000,-1177584.468,8.56e-05,2]
[423391649,1780078663000,-208.70253457,8.56e-05,2]
[423391646,1780078663000,-208.70253457,8.56e-05,2]
[423391643,1780078663000,-193.19403779,8.559e-05,2]
[423391645,1780078663000,-208.70253459,8.559e-05,2]
[423391651,1780078705000,-209.09056759,8.564e-05,2]
[423391653,1780078735000,913.43,7.846e-05,2]
[423391654,1780078736000,913.43,7.89e-05,2]
[423391655,1780078736000,913.43,7.933e-05,2]
[423391657,1780078736000,913.43,8.02e-05,2]
[423391658,1780078736000,913.43,8.064e-05,2]
[423391656,1780078736000,913.43,7.977e-05,2]
[423391663,1780078737000,913.43,8.281e-05,2]
[423391661,1780078737000,913.43,8.194e-05,2]
[423391660,1780078737000,913.43,8.151e-05,2]
[423391659,1780078737000,913.43,8.107e-05,2]
[423391662,1780078737000,913.43,8.237e-05,2]
[423391666,1780078738000,913.43,8.411e-05,2]
[423391665,1780078738000,913.43,8.368e-05,2]
[423391664,1780078738000,913.43,8.324e-05,2]
[423391667,1780078740000,913.43,8.455e-05,2]
[423391668,1780078740000,913.43,8.498e-05,2]
[423391669,1780078759000,-500.0,8.542e-05,2]
[423391670,1780078761000,23833.25846786,8e-05,2]
[423391672,1780078852000,2000.0,8.219e-05,2]
[423391673,1780078894000,166.7,8.412e-05,2]
[423391674,1780078913000,395.68094194,7.888e-05,2]
[423391678,1780078985000,150.0,8.286e-05,2]
[423391680,1780079009000,3212.559,8.438e-05,2]
[423391679,1780079009000,236.677,8.438e-05,2]
[423391681,1780079105000,1000.0,7.728e-05,2]
[423391682,1780079145000,500.0,7.723e-05,2]
[423391683,1780079216000,-240.16595621,8.542e-05,2]
[423391684,1780079251000,160.0,7.695e-05,2]
[423391685,1780079303000,-257.8245,8.51e-05,2]
[423391686,1780079321000,12062.663325,7.945e-05,2]
[423391687,1780079321000,150.0,8.255e-05,2]
[423391688,1780079322000,-173.26404379,8.542e-05,2]
[423391692,1780079323000,-500.0,8.554e-05,2]
[423391691,1780079323000,-500.0,8.554e-05,2]
[423391690,1780079323000,-1200.0,8.554e-05,2]
[423391689,1780079323000,-150.0,8.553e-05,2]
[423391693,1780079323000,-500.0,8.554e-05,2]
[423391695,1780079323000,-500.0,8.554e-05,2]
[423391694,1780079323000,-500.0,8.554e-05,2]
[423391698,1780079323000,-500.0,8.554e-05,2]
[423391697,1780079323000,-388.49399936,8.554e-05,2]
[423391699,1780079323000,-500.0,8.554e-05,2]
[423391700,1780079323000,-500.0,8.554e-05,2]
[423391701,1780079323000,-500.0,8.554e-05,2]
[423391702,1780079323000,-500.0,8.554e-05,2]
[423391696,1780079323000,-500.0,8.554e-05,2]
[423391703,1780079323000,-500.0,8.554e-05,2]
[423391717,1780079324000,-500.0,8.609e-05,2]
[423391718,1780079324000,-192.69583869,8.609e-05,2]
[423391716,1780079324000,-172.51383256,8.609e-05,2]
[423391713,1780079324000,-4499.25139724,8.558e-05,2]
[423391715,1780079324000,-940.18848869,8.609e-05,2]
[423391714,1780079324000,-913.43,8.585e-05,2]
[423391712,1780079324000,-841.3188791,8.558e-05,2]
[423391709,1780079324000,-500.0,8.554e-05,2]
[423391710,1780079324000,-3099.0949836,8.558e-05,2]
[423391708,1780079324000,-500.0,8.554e-05,2]
[423391706,1780079324000,-500.0,8.554e-05,2]
[423391704,1780079324000,-500.0,8.554e-05,2]
[423391705,1780079324000,-500.0,8.554e-05,2]
[423391719,1780079324000,-500.0,8.609e-05,2]
[423391711,1780079324000,-2809.78310969,8.558e-05,2]
[423391720,1780079324000,-535.23582645,8.609e-05,2]
[423391732,1780079324000,-292.0,8.634e-05,2]
[423391723,1780079324000,-500.0,8.609e-05,2]
[423391738,1780079324000,-6165.0,8.678e-05,2]
[423391737,1780079324000,-1050.0,8.675e-05,2]
[423391736,1780079324000,-10929.0,8.674e-05,2]
[423391735,1780079324000,-913.43,8.672e-05,2]
[423391722,1780079324000,-500.0,8.609e-05,2]
[423391733,1780079324000,-1023.0,8.656e-05,2]
[423391734,1780079324000,-5325.0,8.671e-05,2]
[423391731,1780079324000,-913.43,8.629e-05,2]
[423391730,1780079324000,-915476.3989,8.61e-05,2]
[423391728,1780079324000,-150.0,8.609e-05,2]
[423391725,1780079324000,-153.52427427,8.609e-05,2]
[423391726,1780079324000,-419.85133291,8.609e-05,2]
[423391724,1780079324000,-500.0,8.609e-05,2]
[423391727,1780079324000,-150.0,8.609e-05,2]
[423391721,1780079324000,-500.0,8.609e-05,2]
[423391729,1780079324000,-5996.4441,8.61e-05,2]
[423391707,1780079324000,-500.0,8.554e-05,2]
[423391743,1780079325000,-335.26128095,8.693e-05,2]
[423391741,1780079325000,-13884.65375649,8.692e-05,2]
[423391742,1780079325000,-500.0,8.693e-05,2]
[423391740,1780079325000,-8256.0,8.689e-05,2]
[423391739,1780079325000,-325.0,8.681e-05,2]
[423391744,1780079326000,200.0,7.965e-05,2]
[423391745,1780079358000,-500.0,8.51e-05,2]
[423391746,1780079377000,1000.0,0.0002808,120]
[423391747,1780079378000,500.0,7.944e-05,2]
[423391748,1780079378000,200.0,5e-05,120]
[423391749,1780079378000,543.16599993,7.944e-05,2]
[423391750,1780079378000,-500.0,8.51e-05,2]
[423391752,1780079378000,-250.0,8.56e-05,2]
[423391751,1780079378000,-1500.0,8.51e-05,2]
[423391753,1780079378000,-183.0,8.594e-05,2]
[423391762,1780079378000,-154.33010067,8.702e-05,2]
[423391754,1780079378000,-150.0,8.609e-05,2]
[423391756,1780079378000,-300.0,8.609e-05,2]
[423391757,1780079378000,-183.0,8.679e-05,2]
[423391759,1780079378000,-1797.0,8.699e-05,2]
[423391760,1780079378000,-300.0,8.701e-05,2]
[423391758,1780079378000,-1349.73871905,8.693e-05,2]
[423391761,1780079378000,-150.0,8.702e-05,2]
[423391755,1780079378000,-150.0,8.609e-05,2]
[423391764,1780079379000,-500.0,8.702e-05,2]
[423391763,1780079379000,-500.0,8.702e-05,2]
[423391766,1780079379000,-500.0,8.702e-05,2]
[423391765,1780079379000,-500.0,8.702e-05,2]
[423391767,1780079379000,-225.12012081,8.702e-05,2]
[423391769,1780079379000,-500.0,8.702e-05,2]
[423391770,1780079379000,-344.58440037,8.702e-05,2]
[423391768,1780079379000,-500.0,8.702e-05,2]
[423391771,1780079398000,-62.43586014,8.702e-05,2]
[423391822,1780079432000,-282.52457179,8.609e-05,2]
[423391826,1780079432000,-293.1532518,8.702e-05,2]
[423391827,1780079432000,-1200.0,8.708e-05,2]
[423391823,1780079432000,-150.0,8.702e-05,2]
[423391825,1780079432000,-150.0,8.702e-05,2]
[423391828,1780079432000,-300.0,8.708e-05,2]
[423391824,1780079432000,-150.0,8.702e-05,2]
[423391830,1780079432000,-1200.0,8.708e-05,2]
[423391835,1780079432000,-847.93309054,8.709e-05,2]
[423391836,1780079432000,-9072.60761681,8.71e-05,2]
[423391832,1780079432000,-262.32894964,8.709e-05,2]
[423391829,1780079432000,-300.0,8.708e-05,2]
[423391833,1780079432000,-737.67105036,8.709e-05,2]
[423391834,1780079432000,-152.06690946,8.709e-05,2]
[423391831,1780079432000,-150.0,8.709e-05,2]
[423391837,1780079433000,-638.55,8.71e-05,2]
[423391842,1780079433000,-183.0,8.764e-05,2]
[423391839,1780079433000,-91931.94379258,8.71e-05,2]
[423391840,1780079433000,-87545.86974878,8.71e-05,2]
[423391849,1780079433000,-9999.99,8.85e-05,2]
[423391848,1780079433000,-183.0,8.85e-05,2]
[423391841,1780079433000,-803.0,8.71e-05,2]
[423391845,1780079433000,-255.63151319,8.811e-05,2]
[423391846,1780079433000,-636.42160453,8.821e-05,2]
[423391838,1780079433000,-31969.73747283,8.71e-05,2]
[423391847,1780079433000,-150.99,8.821e-05,2]
[423391844,1780079433000,-1901.0,8.804e-05,2]
[423391851,1780079433000,-9999.99,8.85e-05,2]
[423391852,1780079433000,-9284.39139714,8.922e-05,2]
[423391850,1780079433000,-299.99,8.85e-05,2]
[423391853,1780079433000,-183.0,8.935e-05,2]
[423391854,1780079433000,-1600.0,8.952e-05,2]
[423391855,1780079433000,-18240.0,8.954e-05,2]
[423391856,1780079433000,-107.01395605,8.972e-05,2]
[423391857,1780079433000,-534.06656813,8.972e-05,2]
[423391843,1780079433000,-302.0,8.788e-05,2]
[423391953,1780079451000,-513.91009817,8.972e-05,2]
[423391954,1780079451000,-4701.00937765,8.972e-05,2]
[423391955,1780079451000,-6280.0,8.99e-05,2]
[423391958,1780079451000,-1754.0,9.021e-05,2]
[423391956,1780079451000,-322.0,9.003e-05,2]
[423391957,1780079451000,-183.0,9.02e-05,2]
[423391959,1780079451000,-166.66,9.037e-05,2]
[423391961,1780079451000,-6955.33436465,9.04e-05,2]
[423391960,1780079451000,-1636.0,9.039e-05,2]
[423391966,1780079451000,-183.0,9.19e-05,2]
[423391965,1780079451000,-160.0,9.113e-05,2]
[423391963,1780079451000,-403.0,9.096e-05,2]
[423391962,1780079451000,-1412.0,9.057e-05,2]
[423391964,1780079451000,-183.0,9.105e-05,2]
[423391970,1780079452000,-183.0,9.275e-05,2]
[423391967,1780079452000,-320.0,9.209e-05,2]
[423391968,1780079452000,-163.76,9.247e-05,2]
[423391969,1780079452000,-2000.0,9.247e-05,2]
[423391971,1780079452000,-166.66,9.326e-05,2]
[423391977,1780079452000,-500.0,9.361e-05,2]
[423391979,1780079452000,-206.73811975,9.361e-05,2]
[423391982,1780079452000,-500.0,9.396e-05,2]
[423391973,1780079452000,-310.43374218,9.35e-05,2]
[423391984,1780079452000,-250.0,9.572e-05,2]
[423391981,1780079452000,-4037.08279602,9.396e-05,2]
[423391980,1780079452000,-250.0,9.396e-05,2]
[423391983,1780079452000,-394.09661017,9.396e-05,2]
[423391972,1780079452000,-200.0,9.35e-05,2]
[423391974,1780079452000,-200.0,9.35e-05,2]
[423391976,1780079452000,-187.0,9.36e-05,2]
[423391975,1780079452000,-200.0,9.35e-05,2]
[423391992,1780079452000,-500.0,9.836e-05,2]
[423391991,1780079452000,-2000.0,9.83e-05,2]
[423391997,1780079452000,-2000.0,0.0001,2]
[423391988,1780079452000,-163.76,9.76e-05,2]
[423391995,1780079452000,-265.17471679,0.0001,2]
[423391989,1780079452000,-205.0,9.8e-05,2]
[423391994,1780079452000,-1600.0,9.947e-05,2]
[423391996,1780079452000,-2000.0,0.0001,2]
[423391987,1780079452000,-166.66,9.615e-05,2]
[423391985,1780079452000,-1680.0,9.579e-05,2]
[423391986,1780079452000,-255.0,9.58e-05,2]
[423391993,1780079452000,-166.66,9.904e-05,2]
[423391978,1780079452000,-250.0,9.361e-05,2]
[423392046,1780079453000,-1403.15887536,0.0001069,2]
[423392047,1780079453000,-1403.15887536,0.0001069,2]
[423392045,1780079453000,-4232.792238,0.00010604,2]
[423392044,1780079453000,-3821.08630888,0.00010604,2]
[423392043,1780079453000,-500.0,0.00010575,2]
[423392041,1780079453000,-2351.0,0.00010537,2]
[423392039,1780079453000,-10000.0,0.000103,2]
[423392042,1780079453000,-433.0,0.00010538,2]
[423392048,1780079453000,-66572.57462463,0.000107,2]
[423392040,1780079453000,-4000.0,0.00010529,2]
[423392049,1780079453000,-791.61,0.000107,2]
[423392056,1780079453000,-559.77146089,0.000107,2]
[423392051,1780079453000,152.0,9.364e-05,7]
[423392052,1780079453000,-15023.87514939,0.000107,2]
[423392054,1780079453000,-491.80302606,0.000107,2]
[423392053,1780079453000,-724.44,0.000107,2]
[423392055,1780079453000,-1136.24390472,0.000107,2]
[423392057,1780079453000,-510.13958758,0.000107,2]
[423392059,1780079453000,-21777.8875019,0.000107,2]
[423392060,1780079453000,-3007.28694954,0.000107,2]
[423392058,1780079453000,-2552.00484249,0.000107,2]
[423392061,1780079453000,-1303.71874918,0.000107,2]
[423392050,1780079453000,-10540.48572919,0.000107,2]
[423392038,1780079453000,-1766.46025299,0.000103,2]
[423392062,1780079454000,-2015.68680403,0.000107,2]
[423392064,1780079454000,-74124.46132496,0.000107,2]
[423392063,1780079454000,-285.20241952,0.000107,2]
[423392066,1780079455000,-911771.5072745,0.000107,2]
[423392067,1780079455000,-412007.91952042,0.000107,2]
[423392069,1780079455000,433.0,0.00028082,120]
[423392068,1780079455000,-3193.48514785,0.000107,2]
[423392065,1780079455000,-401.65716503,0.000107,2]
[423392078,1780079492000,800.0,0.000109,3]
[423392077,1780079492000,500.0,0.000108,3]
[423392076,1780079492000,200.0,0.000107,3]
[423392075,1780079492000,350.26130754,0.00028082,120]
[423392072,1780079492000,-265.17471678,0.000103,2]
[423392073,1780079492000,-500.0,0.00010548,2]
[423392074,1780079492000,-434.82528322,0.000107,2]
[423392071,1780079492000,-500.0,0.00010274,2]
[423392070,1780079492000,-500.0,0.0001,2]
[423392080,1780079493000,-117.5374,8.609e-05,2]
[423392079,1780079493000,-382.4626,8.509e-05,2]
[423392082,1780079494000,192.36,7.922e-05,2]
[423392081,1780079494000,800.0,0.000106,3]
[423392083,1780079531000,-382.4626,8.609e-05,2]
[423392084,1780079532000,-382.4626,9.36e-05,2]
[423392085,1780079551000,-300.0,8.608e-05,2]
[423392087,1780079743000,152.0,9.356e-05,7]
[423392089,1780079744000,152.0,0.00010043,30]
[423392088,1780079744000,152.0,9.356e-05,7]
[423392090,1780079745000,152.0,0.0002418,120]
[423392091,1780079783000,193.19414297,0.00010927,7]
[423392095,1780079942000,-453.16791241,8.701e-05,2]
[423392096,1780079961000,-150.0,8.796e-05,2]
[423392097,1780079962000,150.0,8.44e-05,2]
[423392098,1780079998000,-250.0,8.858e-05,2]
[423392099,1780080016000,-150.0,8.883e-05,2]
[423392100,1780080051000,-2000.0,8.837e-05,2]
[423392101,1780080071000,-328.84,8.834e-05,2]
[423392102,1780080076000,-671.16,8.834e-05,2]
[423392103,1780080104000,-200.0,8.847e-05,2]
[423392104,1780080158000,-328.84,8.848e-05,2]
[423392105,1780080212000,-201.75,8.858e-05,2]
[423392106,1780080264000,-250.0,8.863e-05,2]
[423392107,1780080281000,192.36,6.926e-05,2]
[423392108,1780080288000,1898.11,8.653e-05,2]
[423392109,1780080318000,-2500.0,8.873e-05,2]
[423392112,1780080319000,364.13,8.209e-05,2]
[423392113,1780080319000,364.13,8.254e-05,2]
[423392115,1780080319000,364.13,8.344e-05,2]
[423392110,1780080319000,364.13,8.119e-05,2]
[423392116,1780080319000,364.13,8.389e-05,2]
[423392114,1780080319000,364.13,8.299e-05,2]
[423392118,1780080319000,364.13,8.479e-05,2]
[423392111,1780080319000,364.13,8.164e-05,2]
[423392119,1780080319000,364.13,8.524e-05,2]
[423392117,1780080319000,364.13,8.434e-05,2]
[423392125,1780080320000,364.13,8.794e-05,2]
[423392124,1780080320000,364.13,8.749e-05,2]
[423392123,1780080320000,364.13,8.704e-05,2]
[423392122,1780080320000,364.13,8.659e-05,2]
[423392121,1780080320000,364.13,8.614e-05,2]
[423392120,1780080320000,364.13,8.569e-05,2]
[423392126,1780080338000,-364.13,8.839e-05,2]
[423392127,1780080340000,-184.35162502,8.873e-05,2]
[423392128,1780080390000,-235.62837498,8.873e-05,2]
[423392130,1780080419000,-433.79930862,8.877e-05,2]
[423392129,1780080419000,-500.0,8.877e-05,2]
[423392132,1780080424000,2856.0,8.219e-05,2]
[423392131,1780080424000,200.0,0.000104,3]
[423392133,1780080425000,400.0,0.000105,3]
[423392134,1780080427000,600.0,0.000106,3]
[423392135,1780080429000,800.0,0.000107,3]
[423392136,1780080431000,1000.0,0.000108,3]
[423392137,1780080434000,200.0,0.000109,3]
[423392138,1780080481000,2218.82,8.219e-05,2]
[423392142,1780080533000,152.5,0.00028082,120]
[423392143,1780080537000,152.5,0.00028082,120]
[423392144,1780080539000,152.5,0.00028082,120]
[423392145,1780080540000,1000.0,0.00028081,120]
[423392146,1780080541000,152.5,0.00028082,120]
[423392147,1780080625000,-1200.0,8.875e-05,2]
[423392234,1780080632000,-7551.62277502,8.965e-05,2]
[423392218,1780080632000,-1568.0,8.879e-05,2]
[423392232,1780080632000,-150.99,8.965e-05,2]
[423392230,1780080632000,-150.0,8.965e-05,2]
[423392228,1780080632000,-500.0,8.933e-05,2]
[423392222,1780080632000,-200.0,8.91e-05,2]
[423392209,1780080632000,-300.0,8.875e-05,2]
[423392203,1780080632000,-192.16384967,8.875e-05,2]
[423392216,1780080632000,-500.0,8.878e-05,2]
[423392214,1780080632000,-150.0,8.876e-05,2]
[423392205,1780080632000,-500.0,8.875e-05,2]
[423392239,1780080632000,-2448.36722498,8.965e-05,2]
[423392199,1780080632000,-500.0,8.875e-05,2]
[423392211,1780080632000,-209.09056759,8.876e-05,2]
[423392201,1780080632000,-355.27280772,8.875e-05,2]
[423392197,1780080632000,-500.0,8.875e-05,2]
[423392207,1780080632000,-500.0,8.875e-05,2]
[423392224,1780080632000,-200.0,8.91e-05,2]
[423392220,1780080632000,-364.13,8.884e-05,2]
[423392243,1780080632000,-4526.52023973,8.965e-05,2]
[423392226,1780080632000,-364.13,8.929e-05,2]
[423392267,1780080632000,-200.0,9.054e-05,2]
[423392273,1780080632000,-224.0,9.079e-05,2]
[423392271,1780080632000,-6256.0,9.063e-05,2]
[423392280,1780080632000,-9996.0,9.094e-05,2]
[423392277,1780080632000,-1443.0,9.094e-05,2]
[423392275,1780080632000,-199.0,9.08e-05,2]
[423392265,1780080632000,-678.0,9.049e-05,2]
[423392269,1780080632000,-32289.01610541,9.054e-05,2]
[423392262,1780080632000,-771.0,9.043e-05,2]
[423392256,1780080632000,-364.13,8.974e-05,2]
[423392246,1780080632000,-563.02382865,8.965e-05,2]
[423392260,1780080632000,-16086.648,9.036e-05,2]
[423392241,1780080632000,-999.99,8.965e-05,2]
[423392250,1780080632000,-500.0,8.875e-05,2]
[423392254,1780080632000,-299.99,8.965e-05,2]
[423392252,1780080632000,-4910.44593162,8.965e-05,2]
[423392258,1780080632000,-571.5825739,9.016e-05,2]
[423392321,1780080633000,-500.0,9.199e-05,2]
[423392323,1780080633000,-535.9946373,9.199e-05,2]
[423392330,1780080633000,-792.0,9.199e-05,2]
[423392336,1780080633000,-792.0,9.199e-05,2]
[423392313,1780080633000,-500.0,9.199e-05,2]
[423392315,1780080633000,-500.0,9.199e-05,2]
[423392338,1780080633000,-792.0,9.199e-05,2]
[423392353,1780080633000,-792.0,9.199e-05,2]
[423392351,1780080633000,-792.0,9.199e-05,2]
[423392350,1780080633000,-792.0,9.199e-05,2]
[423392339,1780080633000,-792.0,9.199e-05,2]
[423392341,1780080633000,-792.0,9.199e-05,2]
[423392343,1780080633000,-792.0,9.199e-05,2]
[423392319,1780080633000,-500.0,9.199e-05,2]
[423392355,1780080633000,-792.0,9.199e-05,2]
[423392348,1780080633000,-792.0,9.199e-05,2]
[423392332,1780080633000,-792.0,9.199e-05,2]
[423392345,1780080633000,-792.0,9.199e-05,2]
[423392329,1780080633000,-792.0,9.199e-05,2]
[423392284,1780080633000,-166.66,9.125e-05,2]
[423392282,1780080633000,-814.0,9.112e-05,2]
[423392286,1780080633000,-500.0,9.152e-05,2]
[423392288,1780080633000,-165.9,9.192e-05,2]
[423392293,1780080633000,-500.0,9.199e-05,2]
[423392290,1780080633000,-500.0,9.199e-05,2]
[423392302,1780080633000,-500.0,9.199e-05,2]
[423392295,1780080633000,-500.0,9.199e-05,2]
[423392299,1780080633000,-500.0,9.199e-05,2]
[423392309,1780080633000,-500.0,9.199e-05,2]
[423392297,1780080633000,-500.0,9.199e-05,2]
[423392306,1780080633000,-500.0,9.199e-05,2]
[423392304,1780080633000,-500.0,9.199e-05,2]
[423392310,1780080633000,-500.0,9.199e-05,2]
[423392334,1780080633000,-792.0,9.199e-05,2]
[423392317,1780080633000,-500.0,9.199e-05,2]
[423392325,1780080633000,-792.0,9.199e-05,2]
[423392327,1780080633000,-792.0,9.199e-05,2]
[423392346,1780080633000,-792.0,9.199e-05,2]
[423392357,1780080633000,-792.0,9.199e-05,2]
[423392365,1780080633000,-19496.49371065,9.421e-05,2]
[423392391,1780080633000,-858.38638046,9.89e-05,2]
[423392372,1780080633000,-199.37384035,9.501e-05,2]
[423392375,1780080633000,-672.64,9.554e-05,2]
[423392380,1780080633000,-166.66,9.727e-05,2]
[423392387,1780080633000,-672.64,9.764e-05,2]
[423392394,1780080633000,-500.0,8.875e-05,2]
[423392371,1780080633000,-156.587,9.501e-05,2]
[423392369,1780080633000,-672.64,9.45e-05,2]
[423392390,1780080633000,-672.64,9.868e-05,2]
[423392388,1780080633000,-672.64,9.816e-05,2]
[423392384,1780080633000,-250.0,9.763e-05,2]
[423392373,1780080633000,-672.64,9.502e-05,2]
[423392382,1780080633000,-1680.0,9.762e-05,2]
[423392368,1780080633000,-166.66,9.426e-05,2]
[423392393,1780080633000,-3953.5115552,9.9e-05,2]
[423392344,1780080633000,-792.0,9.199e-05,2]
[423392370,1780080633000,-151.0,9.501e-05,2]
[423392385,1780080633000,-255.0,9.763e-05,2]
[423392381,1780080633000,-250.0,9.76e-05,2]
[423392378,1780080633000,-500.0,9.7e-05,2]
[423392362,1780080633000,-812.9051425,9.199e-05,2]
[423392360,1780080633000,-792.0,9.199e-05,2]
[423392364,1780080633000,-23818.61857006,9.413e-05,2]
[423392366,1780080633000,-30084.05039293,9.421e-05,2]
[423392359,1780080633000,-792.0,9.199e-05,2]
[423392363,1780080633000,-13372.82637297,9.275e-05,2]
[423392361,1780080633000,-792.0,9.199e-05,2]
[423392367,1780080633000,-500.0,9.426e-05,2]
[423392379,1780080633000,-672.64,9.711e-05,2]
[423392395,1780080633000,-801.96957032,9.9e-05,2]
[423392389,1780080633000,-500.0,9.863e-05,2]
[423392376,1780080633000,-672.64,9.607e-05,2]
[423392383,1780080633000,-420.0,9.762e-05,2]
[423392386,1780080633000,-250.0,9.764e-05,2]
[423392392,1780080633000,-5000.0,9.9e-05,2]
[423392377,1780080633000,-672.64,9.659e-05,2]
[423392374,1780080633000,-160.0,9.519e-05,2]
[423392397,1780080634000,-243.19295978,9.941e-05,2]
[423392396,1780080634000,-672.64,9.921e-05,2]
[423392398,1780080634000,-500.0,8.875e-05,2]
[423392399,1780080634000,-232.37982675,8.875e-05,2]
[423392403,1780080638000,-267.62017325,8.875e-05,2]
[423392404,1780080638000,-102.33046856,8.875e-05,2]
[423392461,1780080640000,-672.64,0.00010078,2]
[423392416,1780080640000,-310.24965158,9.989e-05,2]
[423392429,1780080640000,-643.76900195,0.00010027,2]
[423392427,1780080640000,-1531.59735145,0.00010027,2]
[423392424,1780080640000,-301.92247385,0.00010027,2]
[423392422,1780080640000,-195.90824339,0.00010027,2]
[423392420,1780080640000,-672.64,0.00010025,2]
[423392410,1780080640000,-436.74085558,9.941e-05,2]
[423392409,1780080640000,-315.12828532,9.941e-05,2]
[423392408,1780080640000,-1004.93789932,9.941e-05,2]
[423392407,1780080640000,-197.76720025,8.875e-05,2]
[423392414,1780080640000,-513.00107152,9.973e-05,2]
[423392405,1780080640000,-80.95565691,8.875e-05,2]
[423392406,1780080640000,-500.0,8.875e-05,2]
[423392459,1780080640000,-166.66,0.00010028,2]
[423392418,1780080640000,-1257.75034842,9.989e-05,2]
[423392457,1780080640000,-1326.80292936,0.00010027,2]
[423392412,1780080640000,-159.63892848,9.973e-05,2]
[423392467,1780080640000,-672.64,0.00010183,2]
[423392520,1780080640000,-672.64,0.00010444,2]
[423392530,1780080640000,-1092.85142856,0.00010485,2]
[423392518,1780080640000,-672.64,0.00010392,2]
[423392527,1780080640000,-453.20950395,0.00010485,2]
[423392516,1780080640000,-192.36,0.00010389,2]
[423392524,1780080640000,-2468.06375948,0.00010485,2]
[423392522,1780080640000,-474.845829,0.00010475,2]
[423392514,1780080640000,-165.9,0.00010341,2]
[423392463,1780080640000,-560.33973582,0.00010129,2]
[423392505,1780080640000,-251.70365206,0.00010278,2]
[423392512,1780080640000,-672.64,0.0001034,2]
[423392502,1780080640000,-1292.17488539,0.00010278,2]
[423392507,1780080640000,-672.64,0.00010287,2]
[423392469,1780080640000,-672.64,0.00010235,2]
[423392471,1780080640000,-2456.12146255,0.00010278,2]